Cogmind - Beta 12 @@@ ROGUE MODE // 2023.09.01 @ 21:39:20 Player: Talonj Result: Destroyed by G-34 Mercenary with Small Laser Performance ------------- Evolutions (0) 0 Regions Visited (1) 200 Robots Destroyed (11) 55 Value Destroyed (184) 184 Prototype IDs (0) 0 Alien Tech Used (0) 0 Bonus (0) 0 TOTAL SCORE: 439 Bonus ------- None Cogmind --------- Core Integrity 0/250 Matter 232/300 Energy 250/250 System Corruption 2% Temperature Cool (71) Movement Core (450) Ox8 Location -10/Materials Parts ------- > --- POWER (1) -------- Ion Engine > --- PROPULSION (2) --- (None) > --- UTILITY (2) ------ Large Storage Unit > --- WEAPON (2) ------- (None) > --- INVENTORY (15) --- Light Ion Engine Heat Sink Small Matter Pod (50) Datajack Datajack Peak State ------------ > --- POWER ------------ Light Ion Engine > --- PROPULSION ------- Compact Wheel Compact Wheel > --- UTILITY ---------- Improved Terrain Scanner Improved Terrain Scanner > --- WEAPON ----------- Medium Laser Assault Rifle > --- INVENTORY -------- Seismic Detector [Rating: 11] Favorites ----------- Power Ion Engine Engine Ion Engine Propulsion Compact Wheel Wheel Compact Wheel Utility Sensor Array Device Sensor Array Storage Large Storage Unit Processor Signal Interpreter Weapon Medium Laser Energy Gun Medium Laser Ballistic Gun Assault Rifle Special Melee Weapon Datajack Build | -11 -10 ------- Run | Jun Mat Slots Evolved . | . . Power . | . . Propulsion . | . . Utility . | . . Weapon . | . . Parts Attached 16 | 8 8 Power 3 | 1 2 Engine 3 | 1 2 Core . | . . Reactor . | . . Propulsion 2 | 2 . Treads . | . . Leg . | . . Wheel 2 | 2 . Hover . | . . Flight . | . . Utility 7 | 3 4 Device 5 | 3 2 Storage 1 | . 1 Processor 1 | . 1 Hackware . | . . Protection . | . . Artifact . | . . Weapon 4 | 2 2 Energy Gun 2 | 1 1 Energy Cannon . | . . Ballistic Gun 1 | 1 . Ballistic Cannon . | . . Launcher . | . . Special Weapon . | . . Impact Weapon . | . . Slashing Weapon . | . . Piercing Weapon . | . . Special Melee Weapon 1 | . 1 Unidentified Prototypes . | . . Parts Lost 6 | . 6 Power . | . . Propulsion 2 | . 2 Utility 1 | . 1 Weapon 3 | . 3 Highest Loss Streak 6 | . 6 To Critical Strikes . | . . Average Slot Usage (%) 94 | . 94 Engine 12 | . 12 Wheel 26 | . 26 Device 18 | . 18 Storage 2 | . 2 Processor 6 | . 6 Energy Gun 18 | . 18 Ballistic Gun 7 | . 7 Naked Turns . | . . Heaviest Build 31 | 9 31 Greatest Support 32 | 32 32 Greatest Overweight (x) 8 | . 8 Average Overweight (x) . | . . Largest Inventory Capacity 15 | 5 15 Average Capacity 6 | 5 6 Most Carried 6 | 4 6 Average Carried 2 | . 3 Final Capacity 15 | 5 15 Final Carried 5 | 1 5 Class Distribution -------------------- 76% | Mutant 23% | Scavenger-Mutant Dominant Class ---------------- Mutant | -10/Materials Resources | -11 -10 ----------- Run | Jun Mat Matter Collected 433 | 310 123 Remotely . | . . Salvage Created 344 | 80 264 Parts 29 | 10 19 Haulers Intercepted 1 | . 1 Recyclers Shooed 1 | 1 . Parts Field Recycled . | . . Retrieved Matter . | . . Parts Self-Destructed . | . . Prevented . | . . Kills | -11 -10 ------- Run | Jun Mat Combat Hostiles Destroyed 4 | . 4 Guns 3 | . 3 Classes Destroyed 5 | 2 3 Worker 3 | 2 1 Tunneler 2 | 2 . Hauler 1 | . 1 Watcher 1 | . 1 Grunt 4 | . 4 Best Kill Streak 2 | 2 2 Combat Bots Only 2 | . 2 Max Kills in Single Turn 1 | 1 1 Gunslinging . | . . Exploded . | . . Melee . | . . Uniques/NPCs Destroyed . | . . Combat | -11 -10 -------- Run | Jun Mat Damage Taken 650 | . 650 Core 260 | . 260 Absorbed by Shields . | . . Regen/Repaired (Parts) 43 | . 43 Core Remaining (%) 100 | 100 . Volleys Fired 49 | 9 40 Largest 2 | 2 2 Hottest 115 | 70 115 Shots Fired 96 | 18 78 Gun 96 | 18 78 Cannon . | . . Launcher . | . . Special . | . . Kinetic 22 | 9 13 Thermal 74 | 9 65 Explosive . | . . Electromagnetic . | . . Robot Hit Streak 9 | 6 9 Robot Miss Streak 3 | 1 3 Penetration Max . | . . Secondary Targets . | . . Shots Hit Robots 45 | 14 31 Core Hits 16 | 4 12 Critical Kills . | . . Critical Parts Destroyed . | . . Critical Strikes 3 | 1 2 Burn 3 | 1 2 Melee Attacks . | . . Impact . | . . Slashing . | . . Piercing . | . . Sneak Attacks . | . . Combat Hostiles . | . . Follow-up Attacks . | . . Damage Inflicted 612 | 183 429 Guns 612 | 183 429 Cannons . | . . Explosions . | . . Melee . | . . Ramming . | . . Kinetic 203 | 82 121 Thermal 409 | 101 308 Explosive . | . . Electromagnetic . | . . Impact . | . . Slashing . | . . Piercing . | . . Highest Corruption 2 | . 2 Average Corruption 2 | . 2 Corruption Purged . | . . Corruption Blocked . | . . Effects 2 | . 2 Matter Fused 1 | . 1 Heat Flow Errors 1 | . 1 Overload Shots . | . . Overflow Damage . | . . Projectiles . | . . Explosions . | . . Melee . | . . Knockbacks . | . . Impact . | . . Kinetic . | . . Secondary . | . . Self-Inflicted Damage . | . . Shots . | . . Rammed . | . . Targets Rammed . | . . Kicked . | . . Crushed . | . . Highest Temperature 703 | 38 703 Average Temperature 187 | 13 212 Received Heat Transfer 330 | . 330 Effects 22 | . 22 Shutdowns 4 | . 4 Energy Bleed 3 | . 3 Interference 1 | . 1 Matter Decay 2 | . 2 Short Circuit 1 | . 1 Damage (minor) 5 | . 5 Damage (major) 5 | . 5 Damage (core) 1 | . 1 Siege Activations . | . . Robots Corrupted . | . . Combat Hostiles . | . . Parts Fried . | . . Impact Corruptions . | . . Robots Melted 1 | . 1 Combat Hostiles 1 | . 1 Parts Melted 5 | 1 4 Heat Transferred 1369 | 370 999 Parts Sabotaged . | . . Parts Stolen . | . . Parts Stripped . | . . Power Chain Reactions . | . . Missiles Intercepted . | . . Alert | -11 -10 ------- Run | Jun Mat Peak Influence 231 | 20 231 Initial 13 | . 13 Average 81 | 7 101 Maximum Alert Level 1 | . 1 Low Security (%) 84 | 100 79 Level 1 15 | . 20 Level 2 . | . . Level 3 . | . . Level 4 . | . . Level 5 . | . . High Security . | . . Max Security . | . . Squads Dispatched 2 | . 2 Investigation 1 | . 1 Extermination . | . . Reinforcement 1 | . 1 Assault . | . . Garrison . | . . Intercept . | . . Searches Triggered . | . . Construction Impeded . | . . Haulers Reinforced . | . . Active Scanning Responses . | . . Cargo Convoy Interrupts . | . . Stealth | -11 -10 --------- Run | Jun Mat Distress Signals . | . . Communications Jammed . | . . Distress Signals . | . . Times Spotted 13 | . 13 Peak Tracking Total 2 | . 2 Tactical Retreats 4 | . 4 Traps | -11 -10 ------- Run | Jun Mat Traps Triggered 1 | . 1 Indirectly . | . . Trap Hack Attempts . | . . Triggered . | . . Disarmed . | . . Reprogrammed . | . . Reused . | . . Traps Extracted . | . . Installed . | . . Triggered . | . . Machines | -11 -10 ---------- Run | Jun Mat Machines Disabled . | . . Max in Single Turn . | . . Machines Repaired . | . . Machines Sabotaged . | . . Overloaded Fab Kills . | . . Hacking | -11 -10 --------- Run | Jun Mat Machines Accessed 4 | . 4 Terminals 2 | . 2 Fabricators . | . . Repair Stations 1 | . 1 Recycling Units 1 | . 1 Scanalyzers . | . . Garrison Access . | . . Total Hacks 12 | . 12 Successful 7 | . 7 Failed 5 | . 5 Catastrophic 2 | . 2 Database Lockouts . | . . Manual . | . . Terminals 6 | . 6 Fabricators . | . . Repair Stations 4 | . 4 Recycling Units 2 | . 2 Scanalyzers . | . . Garrison Access . | . . Terminal Hacks 4 | . 4 Record 2 | . 2 Robot Analysis 1 | . 1 Alert Level 1 | . 1 Fabricator Hacks . | . . Repair Station Hacks 2 | . 2 Scan Component 1 | . 1 Repair 1 | . 1 Recycling Unit Hacks 1 | . 1 Report Inventory 1 | . 1 Scanalyzer . | . . Garrison Access Hacks . | . . Unauthorized Hacks . | . . Terminals . | . . Fabricators . | . . Repair Stations . | . . Recycling Units . | . . Scanalyzers . | . . Garrison Access . | . . Data Cores Recovered . | . . Used . | . . Hacking Detections 4 | . 4 Full Trace Events 1 | . 1 Feedback Events . | . . Feedback Blocked . | . . Robot Schematics Acquired . | . . Robots Built . | . . Authchips . | . . Time . | . . Total Robot Build Rating . | . . Part Schematics Acquired . | . . Parts Built . | . . Authchips . | . . Time . | . . Total Part Build Rating . | . . Parts Repaired 1 | . 1 Time 26 | . 26 Parts Recycled . | . . Recycled Matter . | . . Retrieved Matter . | . . Retrieved Components . | . . Parts Scanalyzed . | . . Part Schematics Acquired . | . . Parts Damaged . | . . Bothacking | -11 -10 ------------ Run | Jun Mat Used RIF Installer . | . . Robots Hacked . | . . Non-combat . | . . Combat . | . . Robot Hacks Applied . | . . Relay Couplers Released . | . . Fabnet Peak Effective % . | . . Robots Rewired . | . . Allies Hacked . | . . Hacks Repelled . | . . Allies | -11 -10 -------- Run | Jun Mat Total Allies . | . . Largest Group . | . . Highest-Rated Group . | . . Highest-Rated Ally . | . . Total Orders . | . . Ally Attacks . | . . Total Damage . | . . Kills . | . . Allies Corrupted . | . . Allies Melted . | . . Intel | -11 -10 ------- Run | Jun Mat Robot Analysis Total 1 | . 1 Derelict Logs Recovered . | . . Drone Launches . | . . Drone Recoveries . | . . Exploration | -11 -10 ------------- Run | Jun Mat Turns Passed 622 | 136 486 Spaces Moved 355 | 100 255 Core 17 | 16 1 Treads . | . . Legs . | . . Wheels 338 | 84 254 Hover . | . . Flight . | . . Fastest Speed 50 | 50 100 Average Speed 99 | 92 102 Slowest Speed 450 | 100 450 Overloaded Moves . | . . Propulsion Burnouts . | . . Robots Hopped . | . . Cave-ins Triggered . | . . Exploration Rate (%) 22 | 5 39 Regions Visited 1 Branch Regions . Pre-discovered Areas . | . . Known Exits Taken . | . . Unknown Exits Taken 1 | 1 . Scrap Searched . | . . Spaces Dug . | . . Terrain Destroyed . | . . Melee . | . . Projectile . | . . AOE . | . . Terrain Rammed . | . . Walls Destroyed . | . . Machines Disabled . | . . Actions | -11 -10 --------- Run | Jun Mat Total 531 | 126 405 Wait 85 | . 85 Move 354 | 99 255 Hop . | . . Pick Up 20 | 9 11 Fast Attach . | . . Attach 12 | 8 4 Detach 2 | . 2 Swap 4 | . 4 Drop 5 | 1 4 Fire 49 | 9 40 Melee . | . . Ram . | . . Kick . | . . Crush . | . . Escape Stasis . | . . Rewire . | . . Trap . | . . Miscellaneous . | . . Route ------- -11/Junkyard -10/Materials (discovered 1 exit: [*Mat]) History --------- Turn | Location | Event 12 | -11/Junkyard | Discovered new exit (range 16) 137 | -11/Junkyard | Entered Materials 323 | -10/Materials | Build established: Mutant 470 | -10/Materials | Repaired Ion Engine 523 | -10/Materials | Discovered new exit (range 3) 582 | -10/Materials | Core integrity fell below 50% 590 | -10/Materials | Core integrity fell below 20% 623 | -10/Materials | Destroyed by G-34 Mercenary with Small Laser Last Messages --------------- same volley. 00588_ Overheating: Ion Engine damaged (-6). 00588_ K-01 Serf cleans the Terminal. 00589_ Overheating: Com. Wheel damaged (-3). 00589_ Datajack destroyed. 00590_ Overheating: Core damaged (-50). 00591_ Overheating: Med. Laser damaged (-6). 00591_ Overheating: Com. Wheel damaged (-1). 00591_ Overheating: Lrg. Storage Unit damaged (-122). 00591_ Med. Laser destroyed. 00592_ Power failure, Ion Engine shutdown. 00592_ Overheating: Energy bleed (-26). 00593_ Overheating: Matter decay (-28). 00594_ K-01 Serf cleans the Terminal. 00595_ Sensor Array destroyed. 00598_ K-01 Serf cleans the Terminal. 00599_ Overheating: Lrg. Storage Unit damaged (-48). 00604_ Power failure, Ion Engine shutdown. 00612_ System corrupted: Matter fused (-5). 00621_ Com. Wheel destroyed. Map ----- +----------------------------------------------------+ | #+####### ??# ????????????????????????????? | | ??# ????????????????????????????? | | ??# ????????????????????????????? | | ??# ????????????????????????????? | | #####?????????# ????????????????????????????? | | ??????????????# ????????????????????????????? | | ??????????????# ????????????????????????????? | | ??????????????# ##########+############ #???? | | ??????????????# #???? | | ??????????????# #???? | | ??????????????# #???? | | ##################+### ##### ######+????????? | | %+= # #???# #??????????????? | | ######/##### [ # #???# #??????????????? | | ???# [ ## = # #####+###????????????? | | ???# ## # ## #????????????? | | ???# ## """ """ # ## #????????????? | | ???# ## """ R" # ## #????????????? | | ???# ## """ """ # ## """ #????????????? | | ???# ## *%= # ## """ #????????????? | | ???################### ## """ #????????????? | | ?????# ######## #######/####?????????? | | ?????# """ # #?????????? | | ?????# """ / < #?????????? | | ?????# "" """ # #?????????? | | ?????# "" ### ###@###########?????????? | | ?????# "T #?# # #????????????????? | | ?????# "" #?# g """ #????????????????? | | ?????# "" !#?####### """ #????????????????? | | ?????# #???????# """ #????????????????? | | ?????##########???????# #????????????????? | | ??????????????????????#! = #????????????????? | | ???????????????????????#######????????????????? | | | | | | | | | | | | | | | | | | | | | | | | | | | | | | | | | | | +----------------------------------------------------+ Best States ------------- Heat Dissipation 35 Energy Generation 10 Energy Capacity 250 Matter Stores 300 Matter Capacity 300 Sight Range 16 Robot Scan Range 14 Terrain Scan Range 16 Terrain Scan Density 10 Evasion (%) 40 Item Schematics ----------------- None Robot Schematics ------------------ None Fabricated ------------ Nothing Alien Tech Used ----------------- None Achievements -------------- It's Just You Loot Pinata One Hack Too Far Part-time Mechanic Challenges ------------ None Game ------ Seed FluxFireAirjet Manual? 0 Play Time 00:22:14 Cumulative 12.4 hours Start 2023.09.01 @ 21:21:03 End 2023.09.01 @ 21:39:20 Sessions 1 Manual Loads 0 Difficulty Rogue Special Mode None Game No. 11 Rogue 11 Adventurer 0 Explorer 0 Win Type - Total 0 Types 0/0/0/0/0/0/0/0/0 Lore% 4 Gallery% 15 Achievement% 2 Wizard Run 0 Options --------- ASCII 0 Keyboard 0 Movement Mouse Keybinds 0 Fullscreen 1 Font 18/SmallcapsGlow Map View 76x50 Tactical HUD 1 Map Filters NONE Filters NONE Steam 1 RUN: 946b2053-31cf-4484-887b-575c7ece15fd